[Event "Titled Tuesday Blitz November 22 Early 2022"]
[White "Kvaloy, Aksel Bu"]
[Black "Ovchinnikov, Vsevolod"]
[WhiteFideId "1528815"]
[BlackFideId "24176842"]
[WhiteElo "2184"]
[BlackElo "2376"]
[Result "1/2-1/2"]
[Round "04"]
[TimeControl "180+1"]
[Date "2022.11.23"]
[WhiteClock "0:01:00"]
[BlackClock "0:00:06"]

1. e4 {[%clk 0:03:00]}  g6 {[%clk 0:03:00]} 2. d4 {[%clk 0:02:50]}  Bg7 {[%clk 0:03:00]} 3. Nc3 {[%clk 0:02:43]}  a6 {[%clk 0:03:00]} 4. h4 {[%clk 0:02:41]}  h5 {[%clk 0:03:00]} 5. Be3 {[%clk 0:02:39]}  b5 {[%clk 0:03:00]} 6. Bd3 {[%clk 0:02:36]}  Nc6 {[%clk 0:02:54]} 7. d5 {[%clk 0:02:35]}  Ne5 {[%clk 0:02:54]} 8. f3 {[%clk 0:02:35]}  e6 {[%clk 0:02:40]} 9. dxe6 {[%clk 0:02:26]}  dxe6 {[%clk 0:02:39]} 10. Qd2 {[%clk 0:02:27]}  Bb7 {[%clk 0:02:15]} 11. O-O-O {[%clk 0:02:23]}  Nxd3+ {[%clk 0:02:12]} 12. cxd3 {[%clk 0:02:24]}  Nf6 {[%clk 0:02:09]} 13. Nh3 {[%clk 0:02:19]}  Rc8 {[%clk 0:02:08]} 14. d4 {[%clk 0:02:15]}  Qe7 {[%clk 0:01:42]} 15. Ng5 {[%clk 0:02:13]}  Qb4 {[%clk 0:01:36]} 16. Kb1 {[%clk 0:02:10]}  O-O {[%clk 0:01:30]} 17. g4 {[%clk 0:02:09]}  hxg4 {[%clk 0:01:23]} 18. h5 {[%clk 0:02:08]}  Rfe8 {[%clk 0:01:01]} 19. hxg6 {[%clk 0:02:03]}  fxg6 {[%clk 0:01:02]} 20. e5 {[%clk 0:02:03]}  Nd5 {[%clk 0:00:51]} 21. Nxd5 {[%clk 0:02:01]}  Qxd2 {[%clk 0:00:51]} 22. Rxd2 {[%clk 0:01:53]}  Bxd5 {[%clk 0:00:49]} 23. Rf1 {[%clk 0:01:45]}  gxf3 {[%clk 0:00:45]} 24. Nxf3 {[%clk 0:01:46]}  Rf8 {[%clk 0:00:45]} 25. Rdf2 {[%clk 0:01:45]}  Rxf3 {[%clk 0:00:25]} 26. Rxf3 {[%clk 0:01:46]}  Bxf3 {[%clk 0:00:26]} 27. Rxf3 {[%clk 0:01:47]}  Rf8 {[%clk 0:00:27]} 28. Rg3 {[%clk 0:01:42]}  Rf1+ {[%clk 0:00:26]} 29. Kc2 {[%clk 0:01:41]}  Kf7 {[%clk 0:00:27]} 30. Bg5 {[%clk 0:01:36]}  Rf2+ {[%clk 0:00:21]} 31. Kb3 {[%clk 0:01:36]}  Ke8 {[%clk 0:00:14]} 32. Be3 {[%clk 0:01:32]}  Re2 {[%clk 0:00:14]} 33. Bf4 {[%clk 0:01:30]}  Kf7 {[%clk 0:00:11]} 34. Rc3 {[%clk 0:01:30]}  Re4 {[%clk 0:00:05]} 35. Rxc7+ {[%clk 0:01:23]}  Kg8 {[%clk 0:00:06]} 36. Bg5 {[%clk 0:01:24]}  Rxd4 {[%clk 0:00:06]} 37. Bf6 {[%clk 0:01:25]}  Bxf6 {[%clk 0:00:05]} 38. exf6 {[%clk 0:01:26]}  Rf4 {[%clk 0:00:06]} 39. Rg7+ {[%clk 0:01:26]}  Kf8 {[%clk 0:00:06]} 40. Rxg6 {[%clk 0:01:27]}  Kf7 {[%clk 0:00:06]} 41. Rg7+ {[%clk 0:01:28]}  Kxf6 {[%clk 0:00:07]} 42. Ra7 {[%clk 0:01:29]}  Ra4 {[%clk 0:00:07]} 43. a3 {[%clk 0:01:27]}  e5 {[%clk 0:00:06]} 44. Kc3 {[%clk 0:01:28]}  Rc4+ {[%clk 0:00:06]} 45. Kd3 {[%clk 0:01:27]}  Rc6 {[%clk 0:00:07]} 46. Rh7 {[%clk 0:01:27]}  Kf5 {[%clk 0:00:07]} 47. Rf7+ {[%clk 0:01:27]}  Kg6 {[%clk 0:00:06]} 48. Rf2 {[%clk 0:01:25]}  Rf6 {[%clk 0:00:06]} 49. Rg2+ {[%clk 0:01:15]}  Kf5 {[%clk 0:00:06]} 50. Rc2 {[%clk 0:01:16]}  Rd6+ {[%clk 0:00:05]} 51. Ke3 {[%clk 0:01:16]}  Rh6 {[%clk 0:00:05]} 52. Rf2+ {[%clk 0:01:12]}  Ke6 {[%clk 0:00:06]} 53. Rc2 {[%clk 0:01:12]}  Rh3+ {[%clk 0:00:05]} 54. Ke4 {[%clk 0:01:12]}  Rh4+ {[%clk 0:00:06]} 55. Ke3 {[%clk 0:01:12]}  Kd5 {[%clk 0:00:06]} 56. Rd2+ {[%clk 0:01:13]}  Kc5 {[%clk 0:00:05]} 57. Rc2+ {[%clk 0:01:12]}  Rc4 {[%clk 0:00:06]} 58. Rd2 {[%clk 0:01:11]}  a5 {[%clk 0:00:04]} 59. Rh2 {[%clk 0:01:06]}  Rd4 {[%clk 0:00:03]} 60. Rc2+ {[%clk 0:01:05]}  Kd5 {[%clk 0:00:03]} 61. Rc8 {[%clk 0:01:05]}  Rh4 {[%clk 0:00:03]} 62. Rd8+ {[%clk 0:00:59]}  Kc4 {[%clk 0:00:04]} 63. Rc8+ {[%clk 0:01:00]}  Kb3 {[%clk 0:00:04]} 64. Rc5 {[%clk 0:01:00]}  b4 {[%clk 0:00:04]} 65. Rxa5 {[%clk 0:01:00]}  Kxb2 {[%clk 0:00:03]} 66. axb4 {[%clk 0:01:00]}  Rxb4 {[%clk 0:00:04]} 67. Rxe5 {[%clk 0:01:00]}  Kc3 {[%clk 0:00:05]} 68. Rc5+ {[%clk 0:01:00]}  Rc4 {[%clk 0:00:05]} 69. Rxc4+ {[%clk 0:01:00]}  Kxc4 {[%clk 0:00:06]} 1/2-1/2


[Site "https://www.chess.com"]

[Event "Titled Tuesday Blitz November 22 Early 2022"]
[White "Lakshmi C"]
[Black "Aggelis, Nikolaos"]
[WhiteFideId "25035347"]
[BlackFideId "4213220"]
[WhiteElo "1865"]
[BlackElo "2189"]
[Result "1-0"]
[Round "04"]
[TimeControl "180+1"]
[Date "2022.11.23"]
[WhiteClock "0:01:53"]
[BlackClock "0:02:21"]

1. e4 {[%clk 0:02:53]}  c6 {[%clk 0:02:59]} 2. Nc3 {[%clk 0:02:51]}  d5 {[%clk 0:03:00]} 3. Nf3 {[%clk 0:02:51]}  dxe4 {[%clk 0:02:59]} 4. Nxe4 {[%clk 0:02:51]}  Bg4 {[%clk 0:03:00]} 5. h3 {[%clk 0:02:51]}  Bxf3 {[%clk 0:02:59]} 6. Qxf3 {[%clk 0:02:51]}  e6 {[%clk 0:03:00]} 7. c3 {[%clk 0:02:36]}  Nd7 {[%clk 0:03:00]} 8. d4 {[%clk 0:02:36]}  Ngf6 {[%clk 0:03:00]} 9. Bd3 {[%clk 0:02:35]}  Be7 {[%clk 0:03:00]} 10. Bf4 {[%clk 0:02:33]}  Nxe4 {[%clk 0:02:59]} 11. Qxe4 {[%clk 0:02:32]}  Nf6 {[%clk 0:02:58]} 12. Qf3 {[%clk 0:02:29]}  Qd5 {[%clk 0:02:58]} 13. Qe2 {[%clk 0:02:17]}  Qxg2 {[%clk 0:02:41]} 14. O-O-O {[%clk 0:02:15]}  Qd5 {[%clk 0:02:40]} 15. Rhg1 {[%clk 0:02:14]}  Qxa2 {[%clk 0:02:39]} 16. Rxg7 {[%clk 0:02:12]}  Nh5 {[%clk 0:02:39]} 17. Qxh5 {[%clk 0:02:10]}  Qa1+ {[%clk 0:02:28]} 18. Bb1 {[%clk 0:02:05]}  O-O-O {[%clk 0:02:22]} 19. Qxf7 {[%clk 0:01:56]}  Rd7 {[%clk 0:02:21]} 20. Qxe6 {[%clk 0:01:55]}  Rd8 {[%clk 0:02:21]} 21. Rxe7 {[%clk 0:01:53]} 1-0


[Site "https://www.chess.com"]

[Event "Titled Tuesday Blitz November 22 Early 2022"]
[White "Le, Tuan Minh"]
[Black "Goroshkov, Maksym"]
[WhiteFideId "12401153"]
[BlackFideId "14142716"]
[WhiteElo "2530"]
[BlackElo "2257"]
[Result "1-0"]
[Round "04"]
[TimeControl "180+1"]
[Date "2022.11.22"]
[WhiteClock "0:01:49"]
[BlackClock "0:02:06"]

1. d4 {[%clk 0:02:59]}  Nf6 {[%clk 0:02:59]} 2. Nf3 {[%clk 0:02:54]}  d6 {[%clk 0:02:59]} 3. Bg5 {[%clk 0:02:53]}  g6 {[%clk 0:02:59]} 4. Nbd2 {[%clk 0:02:52]}  Bg7 {[%clk 0:02:59]} 5. c3 {[%clk 0:02:53]}  O-O {[%clk 0:02:59]} 6. e4 {[%clk 0:02:53]}  c5 {[%clk 0:02:59]} 7. dxc5 {[%clk 0:02:54]}  dxc5 {[%clk 0:03:00]} 8. Bc4 {[%clk 0:02:55]}  Nc6 {[%clk 0:03:00]} 9. Qe2 {[%clk 0:02:54]}  h6 {[%clk 0:02:56]} 10. Bxf6 {[%clk 0:02:52]}  Bxf6 {[%clk 0:02:57]} 11. Qe3 {[%clk 0:02:52]}  Bg7 {[%clk 0:02:43]} 12. Qxc5 {[%clk 0:02:52]}  Bd7 {[%clk 0:02:34]} 13. O-O {[%clk 0:02:50]}  Rc8 {[%clk 0:02:34]} 14. Qe3 {[%clk 0:02:50]}  Ne5 {[%clk 0:02:33]} 15. Bb3 {[%clk 0:02:49]}  Ng4 {[%clk 0:02:33]} 16. Qe2 {[%clk 0:02:36]}  Qc7 {[%clk 0:02:33]} 17. h3 {[%clk 0:02:36]}  Ne5 {[%clk 0:02:32]} 18. Rad1 {[%clk 0:02:32]}  Rfd8 {[%clk 0:02:29]} 19. Nxe5 {[%clk 0:02:31]}  Bxe5 {[%clk 0:02:30]} 20. Nf3 {[%clk 0:02:31]}  Bf4 {[%clk 0:02:17]} 21. e5 {[%clk 0:02:23]}  Bc6 {[%clk 0:02:12]} 22. Qc4 {[%clk 0:01:50]}  Rxd1 {[%clk 0:02:07]} 23. Qxf7+ {[%clk 0:01:48]}  Kh8 {[%clk 0:02:06]} 24. Rxd1 {[%clk 0:01:49]}  Bxf3 {[%clk 0:02:06]} 25. Qxf4 {[%clk 0:01:49]} 1-0


[Site "https://www.chess.com"]

[Event "Titled Tuesday Blitz November 22 Early 2022"]
[White "Lehtosaari, Mauri"]
[Black "Mayaud, Raphael"]
[WhiteFideId "501999"]
[BlackFideId "627151"]
[WhiteElo "2505"]
[BlackElo "2191"]
[Result "1/2-1/2"]
[Round "04"]
[TimeControl "180+1"]
[Date "2022.11.23"]
[WhiteClock "0:00:22"]
[BlackClock "0:00:07"]

1. d4 {[%clk 0:03:00]}  d5 {[%clk 0:02:58]} 2. Nf3 {[%clk 0:03:01]}  c6 {[%clk 0:02:57]} 3. e3 {[%clk 0:02:58]}  Nf6 {[%clk 0:02:58]} 4. Bd3 {[%clk 0:02:59]}  Bg4 {[%clk 0:02:56]} 5. Nbd2 {[%clk 0:02:59]}  Nbd7 {[%clk 0:02:57]} 6. b3 {[%clk 0:02:59]}  e5 {[%clk 0:02:56]} 7. dxe5 {[%clk 0:02:58]}  Nxe5 {[%clk 0:02:56]} 8. Be2 {[%clk 0:02:59]}  Ng6 {[%clk 0:02:49]} 9. h3 {[%clk 0:02:57]}  Be6 {[%clk 0:02:48]} 10. Bb2 {[%clk 0:02:57]}  Be7 {[%clk 0:02:49]} 11. h4 {[%clk 0:02:52]}  h5 {[%clk 0:02:44]} 12. Ng5 {[%clk 0:02:47]}  Qd7 {[%clk 0:02:35]} 13. Nxe6 {[%clk 0:02:38]}  Qxe6 {[%clk 0:02:31]} 14. Nf3 {[%clk 0:02:39]}  O-O-O {[%clk 0:02:25]} 15. Ng5 {[%clk 0:02:32]}  Qd7 {[%clk 0:02:25]} 16. c3 {[%clk 0:02:19]}  Bd6 {[%clk 0:02:18]} 17. Qc2 {[%clk 0:02:11]}  Ne5 {[%clk 0:02:07]} 18. O-O-O {[%clk 0:02:06]}  Nfg4 {[%clk 0:02:01]} 19. Rdf1 {[%clk 0:02:04]}  f6 {[%clk 0:02:01]} 20. Nf3 {[%clk 0:02:00]}  Rhe8 {[%clk 0:01:57]} 21. Kb1 {[%clk 0:01:56]}  Kb8 {[%clk 0:01:56]} 22. Nd4 {[%clk 0:01:48]}  g6 {[%clk 0:01:39]} 23. a4 {[%clk 0:01:39]}  a6 {[%clk 0:01:38]} 24. Ka2 {[%clk 0:01:38]}  c5 {[%clk 0:01:38]} 25. Nf3 {[%clk 0:01:36]}  b5 {[%clk 0:01:33]} 26. Nxe5 {[%clk 0:01:28]}  Nxe5 {[%clk 0:01:34]} 27. f4 {[%clk 0:01:26]}  Ng4 {[%clk 0:01:34]} 28. Bxg4 {[%clk 0:01:21]}  Qxg4 {[%clk 0:01:31]} 29. axb5 {[%clk 0:01:17]}  axb5 {[%clk 0:01:31]} 30. Qd3 {[%clk 0:01:18]}  Kc7 {[%clk 0:01:13]} 31. Qxd5 {[%clk 0:01:03]}  Bf8 {[%clk 0:00:32]} 32. Qf3 {[%clk 0:00:55]}  Rd2 {[%clk 0:00:26]} 33. Qxg4 {[%clk 0:00:44]}  hxg4 {[%clk 0:00:25]} 34. Re1 {[%clk 0:00:44]}  Rxg2 {[%clk 0:00:23]} 35. Kb1 {[%clk 0:00:36]}  Rd8 {[%clk 0:00:23]} 36. Bc1 {[%clk 0:00:33]}  Rd3 {[%clk 0:00:18]} 37. h5 {[%clk 0:00:27]}  gxh5 {[%clk 0:00:17]} 38. Bb2 {[%clk 0:00:22]}  Rdd2 {[%clk 0:00:17]} 39. Bc1 {[%clk 0:00:22]}  Rd3 {[%clk 0:00:17]} 40. Bb2 {[%clk 0:00:22]}  Rdd2 {[%clk 0:00:10]} 41. Bc1 {[%clk 0:00:22]}  Rd3 {[%clk 0:00:07]} 1/2-1/2


[Site "https://www.chess.com"]

[Event "Titled Tuesday Blitz November 22 Early 2022"]
[White "Levitan, Caleb Levi"]
[Black "Melikyan, Gnel"]
[WhiteFideId "14332620"]
[BlackFideId "54109990"]
[WhiteElo "1963"]
[BlackElo "2138"]
[Result "0-1"]
[Round "04"]
[TimeControl "180+1"]
[Date "2022.11.22"]
[WhiteClock "0:00:02"]
[BlackClock "0:01:40"]

1. e4 {[%clk 0:02:59]}  e5 {[%clk 0:02:58]} 2. Nf3 {[%clk 0:02:59]}  Nc6 {[%clk 0:02:58]} 3. Bb5 {[%clk 0:02:59]}  Nf6 {[%clk 0:02:58]} 4. Qe2 {[%clk 0:02:59]}  d6 {[%clk 0:02:52]} 5. c3 {[%clk 0:02:55]}  Bd7 {[%clk 0:02:51]} 6. O-O {[%clk 0:02:53]}  a6 {[%clk 0:02:50]} 7. Ba4 {[%clk 0:02:52]}  Be7 {[%clk 0:02:49]} 8. d4 {[%clk 0:02:51]}  O-O {[%clk 0:02:49]} 9. Rd1 {[%clk 0:02:34]}  Nxd4 {[%clk 0:02:46]} 10. cxd4 {[%clk 0:02:20]}  Bxa4 {[%clk 0:02:46]} 11. b3 {[%clk 0:02:11]}  Bb5 {[%clk 0:02:45]} 12. Qe1 {[%clk 0:02:08]}  exd4 {[%clk 0:02:38]} 13. Nxd4 {[%clk 0:02:06]}  Bd7 {[%clk 0:02:38]} 14. Nc3 {[%clk 0:02:05]}  Re8 {[%clk 0:02:38]} 15. Bb2 {[%clk 0:01:59]}  Bf8 {[%clk 0:02:30]} 16. Rd3 {[%clk 0:01:23]}  Nxe4 {[%clk 0:02:26]} 17. Nxe4 {[%clk 0:01:20]}  d5 {[%clk 0:02:26]} 18. Re3 {[%clk 0:01:09]}  dxe4 {[%clk 0:02:21]} 19. Rxe4 {[%clk 0:01:09]}  Qf6 {[%clk 0:02:16]} 20. Rc1 {[%clk 0:00:36]}  c5 {[%clk 0:02:09]} 21. Rxe8 {[%clk 0:00:01]}  Rxe8 {[%clk 0:02:07]} 22. Qd2 {[%clk 0:00:02]}  cxd4 {[%clk 0:02:05]} 23. Bxd4 {[%clk 0:00:03]}  Qd6 {[%clk 0:02:02]} 24. Rd1 {[%clk 0:00:03]}  Bg4 {[%clk 0:01:53]} 25. f3 {[%clk 0:00:03]}  Bf5 {[%clk 0:01:52]} 26. Qb2 {[%clk 0:00:02]}  Rd8 {[%clk 0:01:48]} 27. h3 {[%clk 0:00:02]}  Qg6 {[%clk 0:01:42]} 28. Rd2 {[%clk 0:00:02]}  Bxh3 {[%clk 0:01:41]} 29. Kh2 {[%clk 0:00:02]}  Be6 {[%clk 0:01:40]} 30. Bf2 {[%clk 0:00:02]}  Qh6+ {[%clk 0:01:40]} 31. Kg1 {[%clk 0:00:02]}  Qxd2 {[%clk 0:01:40]} 0-1


[Site "https://www.chess.com"]

[Event "Titled Tuesday Blitz November 22 Early 2022"]
[White "Lucas, Arthur"]
[Black "Chuemsakul, Sarocha"]
[WhiteFideId "26093073"]
[BlackFideId "6203710"]
[WhiteElo "2251"]
[BlackElo "1686"]
[Result "1-0"]
[Round "04"]
[TimeControl "180+1"]
[Date "2022.11.23"]
[WhiteClock "0:00:54"]
[BlackClock "0:00:32"]

1. Nf3 {[%clk 0:03:00]}  d5 {[%clk 0:02:59]} 2. e3 {[%clk 0:03:00]}  Nf6 {[%clk 0:02:54]} 3. c4 {[%clk 0:03:00]}  e6 {[%clk 0:02:53]} 4. b3 {[%clk 0:03:00]}  Be7 {[%clk 0:02:53]} 5. Bb2 {[%clk 0:03:00]}  O-O {[%clk 0:02:53]} 6. Nc3 {[%clk 0:02:56]}  c5 {[%clk 0:02:51]} 7. cxd5 {[%clk 0:02:54]}  Nxd5 {[%clk 0:02:52]} 8. Qc2 {[%clk 0:02:51]}  Nc6 {[%clk 0:02:44]} 9. a3 {[%clk 0:02:49]}  b6 {[%clk 0:02:33]} 10. h4 {[%clk 0:02:47]}  Bb7 {[%clk 0:02:25]} 11. Rh3 {[%clk 0:02:30]}  Rc8 {[%clk 0:02:16]} 12. Ng5 {[%clk 0:02:06]}  g6 {[%clk 0:01:36]} 13. Nxd5 {[%clk 0:01:55]}  exd5 {[%clk 0:01:27]} 14. Nxh7 {[%clk 0:01:21]}  Kxh7 {[%clk 0:00:57]} 15. h5 {[%clk 0:01:21]}  d4 {[%clk 0:00:39]} 16. hxg6+ {[%clk 0:01:16]}  Kg8 {[%clk 0:00:32]} 17. g7 {[%clk 0:00:54]} 1-0


[Site "https://www.chess.com"]

[Event "Titled Tuesday Blitz November 22 Early 2022"]
[White "Malka, Samuel"]
[Black "Makhmudov, Shukhrat"]
[WhiteFideId "20643675"]
[BlackFideId "14200775"]
[WhiteElo "2464"]
[BlackElo "2135"]
[Result "0-1"]
[Round "04"]
[TimeControl "180+1"]
[Date "2022.11.23"]
[WhiteClock "0:00:05"]
[BlackClock "0:00:17"]

1. d4 {[%clk 0:03:00]}  Nf6 {[%clk 0:02:58]} 2. c4 {[%clk 0:03:01]}  e6 {[%clk 0:02:58]} 3. Nf3 {[%clk 0:03:00]}  d5 {[%clk 0:02:58]} 4. g3 {[%clk 0:03:00]}  c6 {[%clk 0:02:53]} 5. Qc2 {[%clk 0:02:59]}  a6 {[%clk 0:02:50]} 6. c5 {[%clk 0:02:54]}  b6 {[%clk 0:02:43]} 7. cxb6 {[%clk 0:02:50]}  Qxb6 {[%clk 0:02:43]} 8. Nc3 {[%clk 0:02:49]}  c5 {[%clk 0:02:38]} 9. Na4 {[%clk 0:02:45]}  Qc6 {[%clk 0:02:23]} 10. dxc5 {[%clk 0:02:39]}  a5 {[%clk 0:01:56]} 11. Ne5 {[%clk 0:02:13]}  Qc7 {[%clk 0:01:54]} 12. Bf4 {[%clk 0:02:10]}  Nh5 {[%clk 0:01:54]} 13. Ng6 {[%clk 0:01:49]}  Nxf4 {[%clk 0:01:49]} 14. Nxh8 {[%clk 0:01:49]}  Nh5 {[%clk 0:01:44]} 15. Qxh7 {[%clk 0:01:45]}  Nf6 {[%clk 0:01:44]} 16. Qc2 {[%clk 0:01:42]}  Na6 {[%clk 0:01:38]} 17. Bg2 {[%clk 0:01:34]}  Rb8 {[%clk 0:01:22]} 18. O-O {[%clk 0:01:33]}  Bd7 {[%clk 0:01:21]} 19. Rac1 {[%clk 0:01:15]}  Nb4 {[%clk 0:01:17]} 20. Qd1 {[%clk 0:01:15]}  Nxa2 {[%clk 0:01:17]} 21. Ra1 {[%clk 0:01:16]}  Nb4 {[%clk 0:01:15]} 22. e4 {[%clk 0:01:11]}  dxe4 {[%clk 0:01:12]} 23. Qe2 {[%clk 0:00:58]}  Bb5 {[%clk 0:01:09]} 24. Qd2 {[%clk 0:00:47]}  Bxf1 {[%clk 0:01:06]} 25. Bxf1 {[%clk 0:00:47]}  Qd7 {[%clk 0:00:35]} 26. Qf4 {[%clk 0:00:45]}  Rb7 {[%clk 0:00:25]} 27. Nb6 {[%clk 0:00:43]}  Qc7 {[%clk 0:00:24]} 28. Bb5+ {[%clk 0:00:42]}  Ke7 {[%clk 0:00:22]} 29. Rxa5 {[%clk 0:00:17]}  Qxc5 {[%clk 0:00:22]} 30. Ra8 {[%clk 0:00:08]}  Qxb6 {[%clk 0:00:17]} 31. Ba4 {[%clk 0:00:06]}  Nd3 {[%clk 0:00:17]} 32. Qg5 {[%clk 0:00:06]}  Qxf2+ {[%clk 0:00:16]} 33. Kh1 {[%clk 0:00:05]}  Qf1# {[%clk 0:00:17]} 0-1


[Site "https://www.chess.com"]

[Event "Titled Tuesday Blitz November 22 Early 2022"]
[White "Malyi, Viacheslav"]
[Black "Kuznetsov, Mikhail"]
[WhiteFideId "14123983"]
[BlackFideId "4117190"]
[WhiteElo "2291"]
[BlackElo "1981"]
[Result "0-1"]
[Round "04"]
[TimeControl "180+1"]
[Date "2022.11.23"]
[WhiteClock "0:00:10"]
[BlackClock "0:00:10"]

1. e4 {[%clk 0:01:40]}  c6 {[%clk 0:02:58]} 2. d4 {[%clk 0:01:40]}  d5 {[%clk 0:02:58]} 3. Nc3 {[%clk 0:01:40]}  a6 {[%clk 0:02:57]} 4. Nf3 {[%clk 0:01:35]}  Bg4 {[%clk 0:02:56]} 5. h3 {[%clk 0:01:34]}  Bh5 {[%clk 0:02:55]} 6. Bd3 {[%clk 0:01:33]}  e6 {[%clk 0:02:54]} 7. O-O {[%clk 0:01:33]}  Nf6 {[%clk 0:02:53]} 8. Re1 {[%clk 0:01:32]}  Be7 {[%clk 0:02:44]} 9. a3 {[%clk 0:01:31]}  Bg6 {[%clk 0:02:41]} 10. Bf4 {[%clk 0:01:29]}  O-O {[%clk 0:02:40]} 11. Bh2 {[%clk 0:01:27]}  Nbd7 {[%clk 0:02:31]} 12. Qe2 {[%clk 0:01:27]}  b5 {[%clk 0:02:13]} 13. Rad1 {[%clk 0:01:25]}  Nb6 {[%clk 0:02:11]} 14. Ne5 {[%clk 0:01:25]}  Rc8 {[%clk 0:02:06]} 15. Nxg6 {[%clk 0:01:21]}  hxg6 {[%clk 0:02:07]} 16. e5 {[%clk 0:01:14]}  Nfd7 {[%clk 0:02:05]} 17. Nb1 {[%clk 0:01:10]}  c5 {[%clk 0:01:51]} 18. c3 {[%clk 0:01:10]}  Nb8 {[%clk 0:01:44]} 19. Nd2 {[%clk 0:01:09]}  Nc6 {[%clk 0:01:41]} 20. Nf3 {[%clk 0:01:06]}  Nc4 {[%clk 0:01:38]} 21. Bf4 {[%clk 0:01:02]}  Qb6 {[%clk 0:01:37]} 22. h4 {[%clk 0:01:00]}  cxd4 {[%clk 0:01:22]} 23. cxd4 {[%clk 0:01:01]}  Nxd4 {[%clk 0:01:22]} 24. Nxd4 {[%clk 0:00:52]}  Qxd4 {[%clk 0:01:23]} 25. Bc1 {[%clk 0:00:50]}  Qxh4 {[%clk 0:01:12]} 26. g3 {[%clk 0:00:50]}  Qh5 {[%clk 0:01:12]} 27. f3 {[%clk 0:00:46]}  Qh3 {[%clk 0:01:11]} 28. Qf2 {[%clk 0:00:39]}  Bc5 {[%clk 0:01:10]} 29. Be3 {[%clk 0:00:39]}  Bxe3 {[%clk 0:01:08]} 30. Rxe3 {[%clk 0:00:40]}  Nxe3 {[%clk 0:01:08]} 31. Qxe3 {[%clk 0:00:41]}  Qxg3+ {[%clk 0:01:08]} 32. Kf1 {[%clk 0:00:42]}  g5 {[%clk 0:00:48]} 33. Ke2 {[%clk 0:00:35]}  Qg2+ {[%clk 0:00:47]} 34. Ke1 {[%clk 0:00:35]}  g6 {[%clk 0:00:37]} 35. Bf1 {[%clk 0:00:35]}  Qg3+ {[%clk 0:00:34]} 36. Ke2 {[%clk 0:00:36]}  Rc2+ {[%clk 0:00:33]} 37. Kd3 {[%clk 0:00:36]}  Rfc8 {[%clk 0:00:34]} 38. Be2 {[%clk 0:00:36]}  Qh4 {[%clk 0:00:26]} 39. f4 {[%clk 0:00:27]}  Qxf4 {[%clk 0:00:25]} 40. Qxf4 {[%clk 0:00:27]}  gxf4 {[%clk 0:00:26]} 41. a4 {[%clk 0:00:24]}  b4 {[%clk 0:00:23]} 42. Bf1 {[%clk 0:00:21]}  Rxb2 {[%clk 0:00:22]} 43. Kd4 {[%clk 0:00:22]}  a5 {[%clk 0:00:21]} 44. Bb5 {[%clk 0:00:21]}  Rc3 {[%clk 0:00:15]} 45. Rf1 {[%clk 0:00:22]}  g5 {[%clk 0:00:13]} 46. Rd1 {[%clk 0:00:20]}  g4 {[%clk 0:00:12]} 47. Bd3 {[%clk 0:00:18]}  g3 {[%clk 0:00:11]} 48. Bb5 {[%clk 0:00:15]}  g2 {[%clk 0:00:11]} 49. Bd3 {[%clk 0:00:15]}  f3 {[%clk 0:00:10]} 50. Bb5 {[%clk 0:00:13]}  f2 {[%clk 0:00:09]} 51. Bd3 {[%clk 0:00:13]}  g1=Q {[%clk 0:00:10]} 52. Rf1 {[%clk 0:00:12]}  Qxf1 {[%clk 0:00:09]} 53. Bxf1 {[%clk 0:00:12]}  Rd2+ {[%clk 0:00:09]} 54. Bd3 {[%clk 0:00:10]}  Rdxd3# {[%clk 0:00:10]} 0-1


[Site "https://www.chess.com"]

[Event "Titled Tuesday Blitz November 22 Early 2022"]
[White "Matinian, Nikita"]
[Black "Winterberg, Lukas"]
[WhiteFideId "24129100"]
[BlackFideId "24622702"]
[WhiteElo "2422"]
[BlackElo "2349"]
[Result "1-0"]
[Round "04"]
[TimeControl "180+1"]
[Date "2022.11.23"]
[WhiteClock "0:02:08"]
[BlackClock "0:01:34"]

1. e4 {[%clk 0:03:00]}  e6 {[%clk 0:02:59]} 2. d4 {[%clk 0:03:01]}  d5 {[%clk 0:03:00]} 3. Nc3 {[%clk 0:03:01]}  Nf6 {[%clk 0:03:00]} 4. e5 {[%clk 0:03:02]}  Nfd7 {[%clk 0:03:00]} 5. f4 {[%clk 0:03:02]}  c5 {[%clk 0:03:01]} 6. Nf3 {[%clk 0:03:02]}  Nc6 {[%clk 0:03:02]} 7. Be3 {[%clk 0:03:03]}  a6 {[%clk 0:03:02]} 8. Qd2 {[%clk 0:03:03]}  b5 {[%clk 0:03:03]} 9. dxc5 {[%clk 0:03:03]}  Bxc5 {[%clk 0:03:04]} 10. Bf2 {[%clk 0:03:01]}  Qb6 {[%clk 0:03:04]} 11. Bd3 {[%clk 0:03:01]}  h6 {[%clk 0:03:03]} 12. O-O {[%clk 0:03:00]}  Bb7 {[%clk 0:03:04]} 13. a3 {[%clk 0:03:01]}  Bxf2+ {[%clk 0:03:03]} 14. Qxf2 {[%clk 0:02:57]}  Qxf2+ {[%clk 0:03:03]} 15. Rxf2 {[%clk 0:02:58]}  g5 {[%clk 0:03:01]} 16. f5 {[%clk 0:02:55]}  g4 {[%clk 0:02:49]} 17. fxe6 {[%clk 0:02:53]}  fxe6 {[%clk 0:02:46]} 18. Nh4 {[%clk 0:02:46]}  Ncxe5 {[%clk 0:02:43]} 19. Re1 {[%clk 0:02:45]}  O-O-O {[%clk 0:02:37]} 20. Ng6 {[%clk 0:02:40]}  Nxg6 {[%clk 0:02:27]} 21. Bxg6 {[%clk 0:02:40]}  d4 {[%clk 0:02:16]} 22. Ne4 {[%clk 0:02:39]}  Bxe4 {[%clk 0:02:14]} 23. Rxe4 {[%clk 0:02:39]}  Nc5 {[%clk 0:02:14]} 24. Rxg4 {[%clk 0:02:37]}  d3 {[%clk 0:02:04]} 25. cxd3 {[%clk 0:02:37]}  Nxd3 {[%clk 0:02:05]} 26. Bxd3 {[%clk 0:02:36]}  Rxd3 {[%clk 0:02:05]} 27. h3 {[%clk 0:02:35]}  Kd7 {[%clk 0:02:01]} 28. Rg7+ {[%clk 0:02:32]}  Kc6 {[%clk 0:01:57]} 29. Rg6 {[%clk 0:02:28]}  Kd5 {[%clk 0:01:52]} 30. Rff6 {[%clk 0:02:23]}  Re8 {[%clk 0:01:46]} 31. Rxh6 {[%clk 0:02:23]}  Rd2 {[%clk 0:01:41]} 32. Rf2 {[%clk 0:02:22]}  Rd1+ {[%clk 0:01:36]} 33. Kh2 {[%clk 0:02:22]}  Rc8 {[%clk 0:01:37]} 34. Re2 {[%clk 0:02:19]}  Rc6 {[%clk 0:01:35]} 35. h4 {[%clk 0:02:17]}  a5 {[%clk 0:01:35]} 36. Rh5+ {[%clk 0:02:11]}  Kc4 {[%clk 0:01:34]} 37. Rc2+ {[%clk 0:02:08]} 1-0


[Site "https://www.chess.com"]